bitfinex-derivatives/quotes_SOLF0:USTF0_20250706
["timestamp","ask_amount","ask_price","bid_price","bid_amount"]
[1751799968260,9.470898,147.15,147.07,243.5556]
[1751799968457,13.55023002,147.14,147.07,243.5556]
[1751799968656,13.55023002,147.13,147.07,243.5556]
[1751799968858,8.93127418,147.12,147.07,243.5556]
[1751799969058,9.470898,147.15,147.07,243.5556]
[1751799969354,13.54941709,147.14,147.07,48.4756]
[1751799969555,13.54941709,147.13,147.07,243.5756]
[1751799969761,8.9307473,147.12,147.07,243.5756]
[1751799969962,9.470898,147.15,147.07,243.5756]
[1751799970160,13.54420236,147.14,147.07,243.5756]
[1751799970358,8.92710798,147.13,147.07,243.5756]
[1751799970559,11.811098,147.16,147.07,243.5756]
[1751799970855,13.53929871,147.15,147.07,243.5756]
[1751799971061,13.53929871,147.14,147.07,243.5756]
[1751799971361,8.92371943,147.13,147.07,243.5756]
[1751799971555,11.811098,147.16,147.07,243.5756]
[1751799971758,13.535587,147.15,147.07,243.5756]
[1751799972057,13.535587,147.14,147.07,243.5756]
[1751799972362,8.92127605,147.13,147.07,243.5756]
[1751799972561,11.811098,147.16,147.07,48.4756]
[1751799972764,13.50435829,147.15,147.07,243.5556]
[1751799972958,13.50435829,147.14,147.07,243.5556]
[1751799973256,8.89119527,147.13,147.07,243.5556]
[1751799973454,2.3402,147.16,147.07,243.5556]
[1751799973763,13.50130807,147.15,147.07,243.5556]
[1751799973965,13.50130807,147.14,147.07,243.5556]
[1751799974264,8.88919097,147.13,147.07,243.5556]
[1751799974460,2.3402,147.16,147.07,243.5556]
[1751799974657,8.88738303,147.15,147.07,243.5556]
[1751799974856,8.88738303,147.14,147.07,243.5556]
[1751799975054,2.3402,147.16,147.07,243.5556]
[1751799975353,8.88738303,147.15,147.07,243.5556]
[1751799975554,8.88738303,147.14,147.07,243.5556]
[1751799975755,2.3402,147.16,147.07,243.5556]
[1751799975954,8.88615247,147.15,147.07,243.5556]
[1751799976158,8.88615247,147.14,147.07,243.5556]
[1751799976356,2.3402,147.16,147.07,243.5556]
[1751799976560,13.43890727,147.15,147.07,243.5556]
[1751799976761,4.5797,147.17,147.07,243.5556]
[1751799976961,13.43800876,147.16,147.07,243.5556]
[1751799977162,8.88447454,147.15,147.07,243.5556]
[1751799977462,4.5797,147.17,147.07,243.5556]
[1751799977660,13.4375184,147.16,147.07,243.5556]
[1751799977961,8.88415444,147.15,147.07,243.5556]
[1751799978161,4.5797,147.17,147.07,243.5556]
[1751799978361,46.16,147.18,147.07,243.5556]
[1751799978362,8.88384592,147.16,147.07,243.5556]
[1751799978564,46.16,147.18,147.07,243.5556]
[1751799978765,13.40319883,147.17,147.07,243.5556]
[1751799978966,8.88376018,147.16,147.07,243.5556]
[1751799979166,46.16,147.18,147.07,243.5556]
[1751799979367,13.40380281,147.17,147.07,243.5556]
[1751799979565,8.88417197,147.16,147.07,243.5556]
[1751799979766,46.16,147.18,147.07,243.5556]
[1751799979966,13.40378339,147.17,147.07,243.5556]
[1751799980167,8.88415255,147.16,147.07,243.5556]
[1751799980465,46.16,147.18,147.07,243.5556]
[1751799980665,13.40450693,147.17,147.07,243.5556]
[1751799980859,46.16,147.18,147.07,243.5556]
[1751799980860,8.8846372,147.16,147.07,243.5556]
[1751799981063,46.16,147.18,147.07,243.5556]
[1751799981264,13.40454256,147.17,147.07,243.5556]
[1751799981466,8.8846372,147.16,147.07,243.5556]
[1751799981766,46.16,147.18,147.07,243.5556]
[1751799981967,13.42633892,147.17,147.07,243.5556]
[1751799982167,8.89498859,147.16,147.07,243.5556]
[1751799982368,46.16,147.18,147.07,243.5556]
[1751799982568,13.42735238,147.17,147.07,243.5556]
[1751799982768,8.89566552,147.16,147.07,243.5556]
[1751799982968,46.16,147.18,147.07,243.5556]
[1751799983169,13.42746944,147.17,147.07,243.5556]
[1751799983472,8.89566552,147.16,147.07,243.5556]
[1751799983671,46.16,147.18,147.07,243.5556]
[1751799983872,13.42852181,147.17,147.07,243.5556]
[1751799984072,8.89644605,147.16,147.07,243.5556]
[1751799984274,46.16,147.18,147.07,243.5556]
[1751799984474,13.43007825,147.17,147.07,243.5556]
[1751799984675,8.89751595,147.16,147.07,243.5556]
[1751799984972,8.89751595,147.15,147.07,243.5556]
[1751799985274,46.16,147.18,147.07,243.5556]
[1751799985473,13.46479597,147.17,147.07,243.5556]
[1751799985671,13.46479597,147.16,147.07,243.5556]
[1751799985871,8.89805057,147.15,147.07,243.5556]
[1751799986073,46.16,147.18,147.07,243.5556]
[1751799986275,13.48446844,147.17,147.07,243.5556]
[1751799986574,13.48446844,147.16,147.07,243.5556]
[1751799986774,8.91728937,147.15,147.07,243.5556]
[1751799986973,46.16,147.18,147.07,243.5556]
[1751799987176,13.48609466,147.17,147.07,243.5556]
[1751799987371,13.48609466,147.16,147.07,243.5556]
[1751799987568,8.91862518,147.15,147.07,243.5556]
[1751799987865,55.630898,147.18,147.07,243.5556]
[1751799988071,18.16139512,147.17,147.07,243.5556]
[1751799988271,13.48864248,147.16,147.07,243.5556]
[1751799988472,13.48864248,147.15,147.07,243.5556]
[1751799988771,8.92036937,147.14,147.07,243.5556]
[1751799988973,55.630898,147.18,147.07,243.5556]
[1751799989172,13.49177345,147.17,147.07,243.5556]
[1751799989476,13.49177345,147.16,147.07,243.5556]
[1751799989677,8.92203214,147.15,147.07,243.5556]
[1751799989880,55.630898,147.18,147.07,243.5556]
[1751799990077,13.49373961,147.17,147.07,243.5556]
[1751799990378,13.49373961,147.16,147.07,243.5556]
[1751799990571,8.9237075,147.15,147.07,243.5556]
[1751799990775,55.630898,147.18,147.07,243.5556]
[1751799990977,13.47627776,147.17,147.07,243.5556]
[1751799991275,13.47627776,147.16,147.07,243.5556]
[1751799991475,8.91643372,147.15,147.07,243.5556]
[1751799991676,55.630898,147.18,147.07,243.5556]
[1751799991876,13.47963419,147.17,147.07,243.5556]
[1751799992077,13.47963419,147.16,147.07,243.5556]
[1751799992277,13.47963419,147.15,147.07,243.5556]
[1751799992473,8.91866546,147.14,147.07,243.5556]
[1751799992781,55.630898,147.18,147.07,243.5556]
[1751799992975,18.1449489,147.17,147.07,243.5556]
[1751799993171,13.47179096,147.16,147.07,243.5556]
[1751799993377,13.47179096,147.15,147.07,243.5556]
[1751799993576,8.92100428,147.14,147.07,243.5556]
[1751799993777,55.630898,147.18,147.07,243.5556]
[1751799993975,18.15018717,147.17,147.07,243.5556]
[1751799994177,13.47569498,147.16,147.07,243.5556]
[1751799994377,13.47569498,147.15,147.07,243.5556]
[1751799994579,8.92360898,147.14,147.07,243.5556]
[1751799994781,55.630898,147.18,147.07,243.5556]
[1751799995082,13.60260712,147.17,147.07,243.5556]
[1751799995282,13.48169162,147.16,147.07,243.5556]
[1751799995482,13.48169162,147.15,147.07,243.5556]
[1751799995683,8.92653114,147.14,147.07,243.5556]
[1751799995882,9.470898,147.17,147.07,243.5556]
[1751799996182,13.49371007,147.16,147.07,243.5556]
[1751799996480,13.49371007,147.15,147.07,243.5556]
[1751799996676,8.93832288,147.14,147.07,243.5556]
[1751799996871,9.470898,147.17,147.07,243.5556]
[1751799997074,18.20227108,147.16,147.07,243.5556]
[1751799997281,13.50917183,147.15,147.07,243.5556]
[1751799997482,8.94111953,147.14,147.07,243.5556]
[1751799997679,9.470898,147.17,147.07,243.5556]
[1751799997871,18.2047532,147.16,147.07,243.5556]
[1751799998073,13.51145326,147.15,147.07,243.5556]
[1751799998279,13.51145326,147.14,147.07,243.5556]
[1751799998473,9.470898,147.17,147.07,243.5556]
[1751799998678,18.20800257,147.16,147.07,243.5556]
[1751799998873,13.51385244,147.15,147.07,243.5556]
[1751799999179,8.94413617,147.14,147.07,243.5556]
[1751799999376,9.470898,147.17,147.07,243.5556]
[1751799999576,13.51579942,147.16,147.07,243.5556]
[1751799999778,13.51579942,147.15,147.07,243.5556]
[1751799999980,8.94547422,147.14,147.07,243.5556]
[1751800000182,9.470898,147.17,147.07,243.5556]
[1751800000383,18.21290318,147.16,147.07,243.5556]
[1751800000583,13.51707513,147.15,147.07,243.5556]
[1751800000884,13.51707513,147.14,147.07,243.5556]
[1751800001183,9.470898,147.17,147.07,243.5556]
[1751800001383,18.21670462,147.16,147.07,243.5556]
[1751800001582,13.51987302,147.15,147.07,243.5556]
[1751800001783,13.51987302,147.14,147.07,243.5556]
[1751800001985,9.470898,147.17,147.07,243.5556]
[1751800002186,18.21983203,147.16,147.07,243.5556]
[1751800002487,13.52231289,147.15,147.07,243.5556]
[1751800002688,8.94936625,147.14,147.07,243.5556]
[1751800002890,8.94936625,147.13,147.07,243.5556]
[1751800003079,9.470898,147.17,147.07,243.5556]
[1751800003282,13.52444864,147.16,147.07,243.5556]
[1751800003486,13.52444864,147.15,147.07,243.5556]
[1751800003686,8.95077932,147.14,147.07,243.5556]
[1751800003886,8.95171609,147.13,147.07,243.5556]
[1751800004086,9.470898,147.17,147.07,243.5556]
[1751800004288,13.52651286,147.16,147.07,243.5556]
[1751800004488,13.52651286,147.15,147.07,243.5556]
[1751800004691,8.95205616,147.14,147.07,243.5556]
[1751800004881,8.95205616,147.13,147.07,243.5556]
[1751800005086,9.470898,147.17,147.07,243.5556]
[1751800005282,13.53729168,147.16,147.07,243.5556]
[1751800005582,13.53729168,147.15,147.07,243.5556]
[1751800005780,8.96278805,147.14,147.07,243.5556]
[1751800005985,8.96278805,147.13,147.07,243.5556]
[1751800006180,9.470898,147.17,147.07,243.5556]
[1751800006389,13.53857358,147.16,147.07,243.5556]
[1751800006590,13.53857358,147.15,147.07,243.5556]
[1751800006793,8.96396333,147.14,147.07,243.5556]
[1751800007090,8.96396333,147.13,147.07,243.5556]
[1751800007392,9.470898,147.16,147.07,243.5556]
[1751800007593,13.54017503,147.15,147.07,243.5556]
[1751800007792,13.54017503,147.14,147.07,243.5556]
[1751800007993,8.96479524,147.13,147.07,243.5556]
[1751800008295,8.96479524,147.12,147.07,243.5556]
[1751800008490,9.470898,147.16,147.07,243.5556]
[1751800008690,13.54049639,147.15,147.08,194.82]
[1751800008889,13.54049639,147.14,147.08,194.82]
[1751800009085,13.54049639,147.13,147.08,194.82]
[1751800009291,8.96497939,147.12,147.08,194.82]
[1751800009597,9.470898,147.15,147.09,194.82]
[1751800009797,4.58687057,147.14,147.09,194.82]
[1751800009998,4.58687057,147.13,147.09,194.82]
[1751800010199,9.470898,147.15,147.09,194.82]
[1751800010392,4.58675281,147.14,147.09,194.82]
[1751800010593,4.58675281,147.13,147.09,194.82]
[1751800010793,9.470898,147.15,147.09,194.82]
[1751800010996,4.58684798,147.14,147.09,194.82]
[1751800011195,4.58684798,147.13,147.09,194.82]
[1751800011397,9.470898,147.15,147.09,194.82]
[1751800011597,4.58692963,147.14,147.09,194.82]
[1751800011797,4.58692963,147.13,147.09,194.82]
[1751800012098,9.470898,147.15,147.09,194.82]
[1751800012298,4.58692963,147.14,147.09,194.82]
[1751800012597,9.470898,147.16,147.09,194.82]
[1751800012800,8.94571524,147.14,147.09,194.82]
[1751800014405,4.58842962,147.13,147.09,194.82]
[1751800014697,9.470898,147.16,147.09,194.82]
[1751800015003,4.58842962,147.15,147.09,194.82]
[1751800015203,4.58842962,147.14,147.09,194.82]
[1751800015406,9.470898,147.16,147.09,194.82]
[1751800015601,9.25551046,147.15,147.09,194.82]
[1751800015801,4.56636085,147.14,147.09,194.82]
[1751800016000,9.470898,147.16,147.09,194.82]
[1751800016204,9.25551046,147.15,147.09,194.82]
[1751800016405,13.50724614,147.14,147.09,194.82]
[1751800016604,8.94088529,147.13,147.09,194.82]
[1751800016899,9.470898,147.16,147.09,194.82]
[1751800017105,18.19736157,147.15,147.1,46.12]
[1751800017305,13.50772264,147.14,147.1,46.12]
[1751800017506,13.50772264,147.13,147.1,46.12]
[1751800017706,9.470898,147.16,147.1,46.12]
[1751800017916,18.19950043,147.15,147.1,46.12]
[1751800018106,13.50930439,147.14,147.1,46.12]
[1751800018308,13.50930439,147.13,147.1,46.12]
[1751800018507,8.94192451,147.12,147.1,46.12]
[1751800018708,9.470898,147.15,147.1,46.12]
[1751800018908,13.51137391,147.14,147.1,46.12]
[1751800019208,13.51137391,147.13,147.1,46.12]
[1751800019412,8.94325642,147.12,147.1,46.12]
[1751800019610,9.470898,147.15,147.1,46.12]
[1751800019806,13.51344346,147.14,147.1,46.12]
[1751800020006,13.51344346,147.13,147.1,46.12]
[1751800020207,8.94461339,147.12,147.1,46.12]
[1751800020410,9.470898,147.15,147.1,46.12]
[1751800020609,18.22497159,147.14,147.1,46.12]
[1751800020910,13.53640019,147.13,147.1,46.12]
[1751800021210,8.95702908,147.12,147.1,46.12]
[1751800021410,9.470898,147.16,147.1,46.12]
[1751800021611,18.22800116,147.15,147.1,46.12]
[1751800021807,13.53863867,147.14,147.1,46.12]
[1751800022012,8.95702879,147.13,147.1,46.12]
[1751800022208,9.470898,147.16,147.1,46.12]
[1751800022511,13.53818929,147.15,147.1,46.12]
[1751800022810,13.53818929,147.14,147.1,46.12]
[1751800023007,9.470898,147.16,147.1,46.12]
[1751800023008,8.95682835,147.13,147.1,46.12]
[1751800023213,9.470898,147.19,147.1,46.12]
[1751800023506,18.22513027,147.18,147.1,46.12]
[1751800023710,18.22513027,147.17,147.1,46.12]
[1751800024016,8.9554634,147.16,147.1,46.12]
[1751800024207,9.470898,147.2,147.1,46.12]
[1751800024409,18.21123854,147.19,147.1,46.12]
[1751800024711,13.5263454,147.18,147.1,46.12]
[1751800024912,13.5263454,147.17,147.1,46.12]
[1751800025112,9.470898,147.2,147.1,46.12]
[1751800025414,13.54868048,147.19,147.1,46.12]
[1751800025616,13.54868048,147.18,147.1,46.12]
[1751800025816,8.97343095,147.17,147.1,46.12]
[1751800026112,9.470898,147.21,147.1,46.12]
[1751800026307,18.25039484,147.2,147.1,46.12]
[1751800026508,13.54313494,147.19,147.1,46.12]
[1751800026710,13.54313494,147.18,147.1,46.12]
[1751800026909,8.96987881,147.17,147.11,62.0]
[1751800027106,9.470898,147.21,147.12,2.3981]
[1751800027314,18.24606993,147.2,147.13,194.8]
[1751800027513,13.54025461,147.19,147.13,194.8]
[1751800027813,13.54025461,147.18,147.13,194.8]
[1751800028012,9.470898,147.21,147.13,194.8]
[1751800028214,18.24452361,147.2,147.13,194.8]
[1751800028515,9.470898,147.21,147.13,194.8]
[1751800028516,13.53883924,147.19,147.13,194.8]
[1751800028814,13.53883924,147.18,147.13,194.8]
[1751800029009,9.470898,147.21,147.13,194.8]
[1751800029205,18.23973723,147.2,147.13,194.8]
[1751800029506,13.53528889,147.19,147.13,194.8]
[1751800029709,13.53528889,147.18,147.13,194.8]
[1751800029914,9.470898,147.21,147.13,194.8]
[1751800030214,18.23558515,147.2,147.13,194.8]
[1751800030416,13.53220846,147.19,147.13,194.8]
[1751800030613,12.6784405,147.23,147.13,194.8]
[1751800030818,27.76621632,147.22,147.13,194.8]
[1751800031016,13.6817411,147.21,147.13,194.8]
[1751800031317,8.97940648,147.2,147.13,194.8]
[1751800031514,8.97940648,147.19,147.13,194.8]
[1751800031818,9.51602592,147.24,147.13,781.52]
[1751800032017,23.19343199,147.23,147.13,781.52]
[1751800032212,8.97662594,147.22,147.13,781.52]
[1751800032414,8.97662594,147.21,147.13,781.52]
[1751800032609,8.97662594,147.2,147.13,781.52]
[1751800032809,9.51602592,147.24,147.13,781.52]
[1751800033010,13.67216044,147.23,147.13,781.52]
[1751800033222,8.97318495,147.22,147.13,781.52]
[1751800033421,8.97318495,147.21,147.13,781.52]
[1751800033716,9.51602592,147.24,147.13,781.52]
[1751800034023,13.66788968,147.23,147.13,781.52]
[1751800034321,8.97038212,147.22,147.13,781.52]
[1751800034620,8.97038212,147.21,147.13,781.52]
[1751800034821,9.51602592,147.24,147.13,781.52]
[1751800035017,13.66289795,147.23,147.13,781.52]
[1751800035220,8.96714019,147.22,147.13,781.52]
[1751800035416,8.96714019,147.21,147.13,781.52]
[1751800035618,9.51602592,147.24,147.13,781.52]
[1751800035818,8.9646154,147.23,147.13,781.52]
[1751800036121,8.9646154,147.22,147.13,781.52]
[1751800036319,8.9646154,147.21,147.13,781.52]
[1751800036520,9.49797502,147.24,147.13,781.52]
[1751800036721,8.99027587,147.23,147.13,781.52]
[1751800036919,8.99027587,147.22,147.13,781.52]
[1751800037117,8.99027587,147.21,147.13,781.52]
[1751800037420,9.49797502,147.24,147.13,781.52]
[1751800037621,8.98831783,147.23,147.13,781.52]
[1751800037820,8.98831783,147.22,147.13,781.52]
[1751800038019,8.98831783,147.21,147.13,781.52]
[1751800038221,9.49797502,147.24,147.13,781.52]
[1751800038420,8.98659402,147.23,147.13,781.52]
[1751800038621,8.98659402,147.22,147.13,781.52]
[1751800038822,9.49797502,147.24,147.13,781.52]
[1751800038823,8.98659402,147.21,147.14,62.0]
[1751800039021,9.49797502,147.24,147.15,46.02]
[1751800039225,8.98659402,147.23,147.15,46.02]
[1751800039418,8.98659402,147.22,147.15,46.02]
[1751800039620,9.49797502,147.25,147.15,46.02]
[1751800039822,8.98455935,147.24,147.15,46.02]
[1751800040118,8.98455935,147.23,147.15,46.02]
[1751800040319,8.98455935,147.22,147.15,46.02]
[1751800040523,9.49797502,147.25,147.15,46.02]
[1751800040723,8.98318119,147.24,147.15,46.02]
[1751800040917,8.98318119,147.23,147.15,46.02]
[1751800041117,8.98318119,147.22,147.15,46.02]
[1751800041325,9.49797502,147.25,147.15,46.02]
[1751800041528,8.98183542,147.24,147.15,46.02]
[1751800041719,8.98183542,147.23,147.15,46.02]
[1751800041921,8.98183542,147.22,147.15,46.02]
[1751800042121,9.49797502,147.25,147.15,46.02]
[1751800042326,9.01311418,147.24,147.15,46.02]
[1751800042523,13.65720538,147.23,147.15,46.02]
[1751800042826,13.65720538,147.22,147.15,46.02]
[1751800043026,9.49797502,147.25,147.15,46.02]
[1751800043228,18.44897987,147.24,147.15,46.02]
[1751800043426,13.65642486,147.23,147.15,46.02]
[1751800043622,13.65642486,147.22,147.15,46.02]
[1751800043823,9.49797502,147.25,147.15,46.02]
[1751800044027,13.67618264,147.24,147.15,46.02]
[1751800044323,13.67618264,147.23,147.15,46.02]
[1751800044524,13.67618264,147.22,147.15,46.02]
[1751800044729,9.49797502,147.26,147.15,46.02]
[1751800045026,23.17231886,147.25,147.15,46.02]
[1751800045223,13.67434384,147.24,147.15,46.02]
[1751800045420,13.67434384,147.23,147.15,46.02]
[1751800045615,9.02030691,147.22,147.15,46.02]
[1751800045820,9.49797502,147.26,147.15,46.02]
[1751800046021,23.17055924,147.25,147.15,46.02]
[1751800046221,13.67258422,147.24,147.15,46.02]
[1751800046516,13.67258422,147.23,147.15,46.02]
[1751800046720,9.01925904,147.22,147.15,46.02]
[1751800046919,9.49797502,147.25,147.15,46.02]
[1751800047116,13.67149965,147.24,147.15,46.02]
[1751800047421,9.01862124,147.23,147.15,46.02]
[1751800047725,9.01862124,147.22,147.15,46.02]
[1751800048024,9.49797502,147.26,147.15,46.02]
[1751800048224,13.67044584,147.25,147.15,46.02]
[1751800048419,13.67044584,147.24,147.15,46.02]
[1751800048620,9.01805591,147.23,147.15,46.02]
[1751800048822,9.01805591,147.22,147.15,46.02]
[1751800049023,9.49797502,147.26,147.15,46.02]
[1751800049222,13.66861258,147.25,147.15,46.02]
[1751800049428,13.66861258,147.24,147.15,46.02]
[1751800049728,9.01670818,147.23,147.15,46.02]
[1751800049917,9.49797502,147.26,147.15,46.02]
[1751800050123,13.67942202,147.25,147.15,46.02]
[1751800050424,13.67942202,147.24,147.15,46.02]
[1751800050624,9.01664858,147.23,147.15,46.02]
[1751800050824,9.49797502,147.26,147.15,46.02]
[1751800051024,13.67871326,147.25,147.15,46.02]
[1751800051225,13.67871326,147.24,147.15,46.02]
[1751800051420,9.0161605,147.23,147.15,46.02]
[1751800051629,9.49797502,147.26,147.15,46.02]
[1751800051831,13.67826119,147.25,147.15,46.02]
[1751800052028,13.67826119,147.24,147.15,46.02]
[1751800052329,9.01584179,147.23,147.15,46.02]
[1751800052529,9.49797502,147.26,147.15,46.02]
[1751800052729,13.67814237,147.25,147.15,46.02]
[1751800052931,13.67814237,147.24,147.15,46.02]
[1751800053227,9.01568684,147.23,147.15,46.02]
[1751800053427,9.49797502,147.26,147.15,46.02]
[1751800053628,13.69774439,147.25,147.15,46.02]
[1751800053825,13.69774439,147.24,147.15,46.02]
[1751800054024,13.69774439,147.23,147.15,46.02]
[1751800054223,9.49797502,147.26,147.15,46.02]
[1751800054430,13.69948175,147.25,147.15,46.02]
[1751800054727,13.69948175,147.24,147.15,46.02]
[1751800054926,13.69948175,147.23,147.15,46.02]
[1751800055121,9.49797502,147.26,147.15,46.02]
[1751800055325,13.70085664,147.25,147.15,46.02]
[1751800055527,13.70085664,147.24,147.15,46.02]
[1751800055729,13.70085664,147.23,147.15,46.02]
[1751800055927,9.49797502,147.26,147.15,46.02]
[1751800056129,13.71090363,147.25,147.15,46.02]
[1751800056426,13.71090363,147.24,147.15,46.02]
[1751800056627,13.71090363,147.23,147.15,46.02]
[1751800056828,9.49797502,147.26,147.15,46.02]
[1751800057029,13.71349046,147.25,147.15,46.02]
[1751800057225,9.02966121,147.24,147.15,46.02]
[1751800057429,13.71426919,147.23,147.15,46.02]
[1751800057632,9.49797502,147.26,147.15,46.02]
[1751800057834,13.71630829,147.25,147.15,46.02]
[1751800058034,13.71630829,147.24,147.15,46.02]
[1751800058235,13.71630829,147.23,147.15,46.02]
[1751800058532,9.03165393,147.22,147.15,46.02]
[1751800058729,9.49797502,147.26,147.15,46.02]
[1751800058929,13.71840995,147.25,147.15,46.02]
[1751800059224,13.71840995,147.24,147.15,46.02]
[1751800059424,13.71840995,147.23,147.15,46.02]
[1751800059633,9.03302215,147.22,147.15,46.02]
[1751800059933,9.49797502,147.26,147.15,46.02]
[1751800060232,9.0346397,147.25,147.15,46.02]
[1751800060433,13.7208901,147.24,147.15,46.02]
[1751800060633,13.7208901,147.23,147.15,46.02]
[1751800060932,9.0346397,147.22,147.15,46.02]
[1751800061232,9.49797502,147.25,147.15,46.02]
[1751800061435,13.72608714,147.24,147.15,46.02]
[1751800061635,13.72608714,147.23,147.15,46.02]
[1751800061936,9.03872748,147.22,147.15,46.02]
[1751800062135,9.49797502,147.25,147.15,46.02]
[1751800062337,13.72980713,147.24,147.15,46.02]
[1751800062538,13.72980713,147.23,147.15,46.02]
[1751800062735,13.72980713,147.22,147.15,46.02]
[1751800062936,9.49797502,147.25,147.15,46.02]
[1751800063137,13.73103887,147.24,147.15,46.02]
[1751800063337,13.73103887,147.23,147.15,46.02]
[1751800063539,13.73103887,147.22,147.15,46.02]
[1751800063837,9.49797502,147.25,147.15,46.02]
[1751800064036,13.73628,147.24,147.15,46.02]
[1751800064236,13.73628,147.23,147.15,46.02]
[1751800064437,13.73628,147.22,147.15,46.02]
[1751800064636,9.04474187,147.21,147.15,46.02]
[1751800064834,9.49797502,147.25,147.15,46.02]
[1751800065031,13.74279911,147.24,147.15,46.02]
[1751800065231,13.74279911,147.23,147.15,46.02]
[1751800065437,13.74279911,147.22,147.15,46.02]
[1751800065638,9.04901626,147.21,147.15,46.02]
[1751800065842,9.49797502,147.26,147.15,46.02]
[1751800066136,13.74281093,147.25,147.15,46.02]
[1751800066337,13.74281093,147.24,147.15,46.02]
[1751800066541,13.74281093,147.23,147.15,46.02]
[1751800066739,9.49797502,147.26,147.15,46.02]
[1751800067039,13.74703989,147.25,147.15,46.02]
[1751800067338,13.74703989,147.24,147.15,46.02]
[1751800067539,13.74703989,147.23,147.15,46.02]
[1751800067841,9.0518436,147.22,147.15,46.02]
[1751800068043,9.49797502,147.26,147.15,46.02]
[1751800068237,27.94485751,147.25,147.15,46.02]
[1751800068539,13.75634901,147.24,147.15,46.02]
[1751800068736,13.75634901,147.23,147.15,46.02]
[1751800068935,9.05932751,147.22,147.15,46.02]
[1751800069134,9.49797502,147.25,147.15,46.02]
[1751800069336,13.75926271,147.24,147.15,46.02]
[1751800069538,13.75926271,147.23,147.15,46.02]
[1751800069731,13.75926271,147.22,147.15,46.02]
[1751800069933,9.49797502,147.25,147.15,46.02]
[1751800070144,13.77048155,147.24,147.15,46.02]
[1751800070345,13.77048155,147.23,147.15,46.02]
[1751800070639,13.77048155,147.22,147.15,46.02]
[1751800070844,11.93157502,147.27,147.15,46.02]
[1751800071044,13.76993632,147.26,147.15,46.02]
[1751800071259,13.76993632,147.25,147.15,46.02]
[1751800071442,2.4336,147.27,147.15,46.02]
[1751800071745,13.75680194,147.26,147.15,46.02]
[1751800072043,9.04762115,147.25,147.15,46.02]
[1751800072240,2.4336,147.27,147.15,46.02]
[1751800072439,13.75318749,147.26,147.15,46.02]
[1751800072641,9.04527241,147.25,147.15,46.02]
[1751800072940,2.4336,147.27,147.15,46.02]
[1751800073142,13.75318749,147.26,147.15,46.02]
[1751800073336,9.04527241,147.25,147.15,46.02]
[1751800073535,14.22417502,147.29,147.15,46.02]
[1751800073740,13.75094231,147.28,147.15,46.02]
[1751800073938,14.22417502,147.29,147.15,46.02]
[1751800073939,13.75094231,147.27,147.15,46.02]
[1751800074140,13.75094231,147.26,147.15,46.02]
[1751800074339,9.04376446,147.25,147.15,46.02]
[1751800074639,14.22417502,147.29,147.15,46.02]
[1751800074845,13.79194473,147.28,147.15,46.02]
[1751800075042,13.79194473,147.27,147.15,46.02]
[1751800075242,13.79194473,147.26,147.15,46.02]
[1751800075543,4.7262,147.29,147.15,46.02]
[1751800075844,13.7900655,147.28,147.15,46.02]
[1751800076044,13.7900655,147.27,147.15,46.02]
[1751800076247,13.7900655,147.26,147.15,46.02]
[1751800076448,9.49797502,147.31,147.15,46.02]
[1751800076649,18.55274351,147.3,147.15,46.02]
[1751800076947,13.81508422,147.29,147.15,66.4]
[1751800077140,13.81508422,147.28,147.15,66.4]
[1751800077346,9.07664251,147.27,147.15,66.4]
[1751800077540,9.49797502,147.31,147.15,66.4]
[1751800077741,13.80990082,147.3,147.15,66.4]
[1751800077941,13.80990082,147.29,147.15,66.4]
[1751800078141,13.80990082,147.28,147.15,66.4]